Workbook

Sheet 年度入力シート
A1: 「エコライフノート」 年度
A2: パソコンで入力する場合は、 部分のみ入力してください。排出量・合計は自動計算されます。 | K2: 社名：
A4: 請求が２ヶ月に１度の場合は、２等分してください。 | K4: 人数：
C6: 電気 (kwh) | D6: 都市ｶﾞｽ （m3) | E6: ＬＰガス （ｍ3） | F6: 水道 （m3) | G6: 灯油 （Ｌ） | H6: ガソリン （Ｌ） | I6: 軽油 （Ｌ） | J6: 紙 （kg） | K6: 合計 | L6: 具体的な活動 特に取り組んだことを ご紹介ください。
A7: ＣＯ2排出係数 <a> | C7: 0.559 | D7: 2.29 | E7: 5.884 | F7: 0.58 | G7: 2.49 | H7: 2.32 | I7: 2.58 | J7: 0.49 | K7: -
A8: ４月 | B8: 使用量 <b> | C8: 524 | D8: 79 | F8: 37 | H8: 154.01 | J8: 1 | K8: -
B9: 排出量(kg) <a×b> | C9: =C7*C8 -> 292.916 | D9: 180.91 | E9: 0 | F9: 21.46 | G9: 0 | H9: 357.3032 | I9: 0 | J9: =J7*J8 -> 0.49 | K9: =SUM(C9:J9) -> 853.0792
B10: 金 額 （円） | C10: 12422 | D10: 13685 | F10: 12030 | H10: 19000
A11: ５月 | B11: 使用量 <b> | C11: 357 | D11: 98 | F11: 37 | H11: 128.54 | J11: 1 | K11: -
B12: 排出量(kg) <a×b> | C12: =C7*C11 -> 199.563 | D12: 224.42 | E12: 0 | F12: 21.46 | G12: 0 | H12: 298.2128 | I12: 0 | J12: =J7*J11 -> 0.49 | K12: =SUM(C12:J12) -> 744.1458
B13: 金 額 （円） | C13: 8591 | D13: 16797 | F13: 12029 | H13: 12181 | K13: =SUM(C13:J13) -> 49598
A14: ６月 | B14: 使用量 <b> | C14: 191 | D14: 72 | F14: 36.5 | H14: 54.28 | J14: 2 | K14: -
B15: 排出量(kg) <a×b> | C15: =C7*C14 -> 106.769 | D15: 164.88 | E15: 0 | F15: 21.17 | G15: 0 | H15: 125.9296 | I15: 0 | J15: =J7*J14 -> 0.98 | K15: =SUM(C15:J15) -> 419.7286
B16: 金 額 （円） | C16: 4959 | D16: 12539 | F16: 11850 | H16: 7078 | K16: =SUM(C16:J16) -> 36426
A17: ７月 | B17: 使用量 <b> | C17: 176 | D17: 47 | F17: 36.5 | H17: 108.69 | J17: 1.5 | K17: -
B18: 排出量(kg) <a×b> | C18: =C7*C17 -> 98.384 | D18: 107.63 | E18: 0 | F18: 21.17 | G18: 0 | H18: 252.1608 | I18: 0 | J18: =J7*J17 -> 0.735 | K18: =SUM(C18:J18) -> 480.0798
B19: 金 額 （円） | C19: 4639 | D19: 8413 | F19: 11850 | H19: 14591 | K19: =SUM(C19:J19) -> 39493
A20: ８月 | B20: 使用量 <b> | C20: 247 | D20: 60 | F20: 40.5 | H20: 193.5 | J20: 1 | K20: -
B21: 排出量(kg) <a×b> | C21: =C7*C20 -> 138.073 | D21: 137.4 | E21: 0 | F21: 23.49 | G21: 0 | H21: 448.92 | I21: 0 | J21: =J7*J20 -> 0.49 | K21: =SUM(C21:J21) -> 748.373
B22: 金 額 （円） | C22: 6153 | D22: 10535 | F22: 13287 | H22: 27203 | K22: =SUM(C22:J22) -> 57178
A23: ９月 | B23: 使用量 <b> | C23: 233 | D23: 46 | F23: 40.5 | H23: 117.18 | J23: 1 | K23: -
B24: 排出量(kg) <a×b> | C24: =C7*C23 -> 130.247 | D24: 105.34 | E24: 0 | F24: 23.49 | G24: 0 | H24: 271.8576 | I24: 0 | J24: =J7*J23 -> 0.49 | K24: =SUM(C24:J24) -> 531.4246
B25: 金 額 （円） | C25: 5854 | D25: 8250 | F25: 13286 | H25: 15900 | K25: =SUM(C25:J25) -> 43290
A26: 10月 | B26: 使用量 <b> | C26: 217 | D26: 53 | F26: 41 | H26: 74.92 | J26: 1 | K26: -
B27: 排出量(kg) <a×b> | C27: =C7*C26 -> 121.303 | D27: 121.37 | E27: 0 | F27: 23.78 | G27: 0 | H27: 173.8144 | I27: 0 | J27: =J7*J26 -> 0.49 | K27: =SUM(C27:J27) -> 440.7574
B28: 金 額 （円） | C28: 5574 | D28: 9442 | F28: 13466 | H28: 10363 | K28: =SUM(C28:J28) -> 38845
A29: 11月 | B29: 使用量 <b> | C29: 248 | D29: 56 | F29: 41 | H29: 185.31 | J29: 1 | K29: -
B30: 排出量(kg) <a×b> | C30: =C7*C29 -> 138.632 | D30: 128.24 | E30: 0 | F30: 23.78 | G30: 0 | H30: 429.9192 | I30: 0 | J30: =J7*J29 -> 0.49 | K30: =SUM(C30:J30) -> 721.0612
B31: 金 額 （円） | C31: 6244 | D31: 9935 | F31: 13466 | H31: 26348 | K31: =SUM(C31:J31) -> 55993
A32: 12月 | B32: 使用量 <b> | C32: 578 | D32: 68 | F32: 37.5 | H32: 68.49 | J32: 1.5 | K32: -
B33: 排出量(kg) <a×b> | C33: =C7*C32 -> 323.102 | D33: 155.72 | E33: 0 | F33: 21.75 | G33: 0 | H33: 158.8968 | I33: 0 | J33: =J7*J32 -> 0.735 | K33: =SUM(C33:J33) -> 660.2038
B34: 金 額 （円） | C34: 13823 | D34: 11903 | F34: 12209 | H34: 9806 | K34: =SUM(C34:J34) -> 47741
A35: １月 | B35: 使用量 <b> | C35: 1196 | D35: 100 | F35: 37.5 | H35: 111.65 | J35: 1.5 | K35: -
B36: 排出量(kg) <a×b> | C36: =C7*C35 -> 668.564 | D36: 229 | E36: 0 | F36: 21.75 | G36: 0 | H36: 259.028 | I36: 0 | J36: =J7*J35 -> 0.735 | K36: =SUM(C36:J36) -> 1179.077
B37: 金 額 （円） | C37: 28484 | D37: 17342 | F37: 12209 | H37: 15691 | K37: =SUM(C37:J37) -> 73726
A38: ２月 | B38: 使用量 <b> | C38: 1057 | D38: 100 | F38: 41.5 | H38: 95.54 | J38: 2 | K38: -
B39: 排出量(kg) <a×b> | C39: =C7*C38 -> 590.863 | D39: 229 | E39: 0 | F39: 24.07 | G39: 0 | H39: 221.6528 | I39: 0 | J39: =J7*J38 -> 0.98 | K39: =SUM(C39:J39) -> 1066.5658
B40: 金 額 （円） | C40: 25220 | D40: 17342 | F40: 13645 | H40: 13376 | K40: =SUM(C40:J40) -> 69583
A41: ３月 | B41: 使用量 <b> | C41: 989 | D41: 112 | F41: 41.5 | H41: 77.6 | J41: 2 | K41: -
B42: 排出量(kg) <a×b> | C42: =C7*C41 -> 552.851 | D42: 256.48 | E42: 0 | F42: 24.07 | G42: 0 | H42: 180.032 | I42: 0 | J42: =J7*J41 -> 0.98 | K42: =SUM(C42:J42) -> 1014.413
B43: 金 額 （円） | C43: 23623 | D43: 19333 | F43: 13645 | H43: 10918 | K43: =SUM(C43:J43) -> 67519
A44: 累計 | B44: 使用量 <b> | C44: =C8+C11+C14+C17+C20+C23+C26+C29+C32+C35+C38+C41 -> 6013 | D44: 891 | E44: 0 | F44: 468 | G44: 0 | H44: 1369.71 | I44: 0 | J44: 16.5 | K44: -
B45: 排出量(kg) <a×b> | C45: =C7*C44 -> 3361.267 | D45: 2040.39 | E45: 0 | F45: 271.44 | G45: 0 | H45: 3177.7272 | I45: 0 | J45: 8.085 | K45: =SUM(C45:J45) -> 8858.9092
B46: 金 額 （円） | C46: =C10+C13+C16+C19+C22+C25+C28+C31+C34+C37+C40+C43 -> 145586 | D46: 155516 | E46: 0 | F46: 152972 | G46: 0 | H46: 182455 | I46: 0 | J46: 0 | K46: =SUM(C46:J46) -> 636529

Sheet 年度CO2
C2: 電気 | D2: ガス | E2: 水道 | F2: 灯油 | G2: ｶﾞｿﾘﾝ | H2: 軽油 | I2: 紙 | J2: 合計 | L2: 都市 | M2: ＬＰ
B3: ４月 | C3: =年度入力シート!C9 -> 292.916 | D3: =SUM(L3:M3) -> 180.91 | E3: =年度入力シート!F9 -> 21.46 | F3: =年度入力シート!G9 -> 0 | G3: =年度入力シート!H9 -> 357.3032 | H3: =年度入力シート!I9 -> 0 | I3: =年度入力シート!J9 -> 0.49 | J3: =年度入力シート!K9 -> 853.0792 | L3: =年度入力シート!D9 -> 180.91 | M3: =年度入力シート!E9 -> 0
B4: ５月 | C4: =年度入力シート!C12 -> 199.563 | D4: 224.42 | E4: =年度入力シート!F12 -> 21.46 | F4: =年度入力シート!G12 -> 0 | G4: =年度入力シート!H12 -> 298.2128 | H4: =年度入力シート!I12 -> 0 | I4: =年度入力シート!J12 -> 0.49 | J4: =年度入力シート!K12 -> 744.1458 | L4: =年度入力シート!D12 -> 224.42 | M4: =年度入力シート!E12 -> 0
B5: ６月 | C5: =年度入力シート!C15 -> 106.769 | D5: 164.88 | E5: =年度入力シート!F15 -> 21.17 | F5: =年度入力シート!G15 -> 0 | G5: =年度入力シート!H15 -> 125.9296 | H5: =年度入力シート!I15 -> 0 | I5: =年度入力シート!J15 -> 0.98 | J5: =年度入力シート!K15 -> 419.7286 | L5: =年度入力シート!D15 -> 164.88 | M5: =年度入力シート!E15 -> 0
B6: ７月 | C6: =年度入力シート!C18 -> 98.384 | D6: 107.63 | E6: =年度入力シート!F18 -> 21.17 | F6: =年度入力シート!G18 -> 0 | G6: =年度入力シート!H18 -> 252.1608 | H6: =年度入力シート!I18 -> 0 | I6: =年度入力シート!J18 -> 0.735 | J6: =年度入力シート!K18 -> 480.0798 | L6: =年度入力シート!D18 -> 107.63 | M6: =年度入力シート!E18 -> 0
B7: ８月 | C7: =年度入力シート!C21 -> 138.073 | D7: 137.4 | E7: =年度入力シート!F21 -> 23.49 | F7: =年度入力シート!G21 -> 0 | G7: =年度入力シート!H21 -> 448.92 | H7: =年度入力シート!I21 -> 0 | I7: =年度入力シート!J21 -> 0.49 | J7: =年度入力シート!K21 -> 748.373 | L7: =年度入力シート!D21 -> 137.4 | M7: =年度入力シート!E21 -> 0
B8: ９月 | C8: =年度入力シート!C24 -> 130.247 | D8: 105.34 | E8: =年度入力シート!F24 -> 23.49 | F8: =年度入力シート!G24 -> 0 | G8: =年度入力シート!H24 -> 271.8576 | H8: =年度入力シート!I24 -> 0 | I8: =年度入力シート!J24 -> 0.49 | J8: =年度入力シート!K24 -> 531.4246 | L8: =年度入力シート!D24 -> 105.34 | M8: =年度入力シート!E24 -> 0
B9: 10月 | C9: =年度入力シート!C27 -> 121.303 | D9: 121.37 | E9: =年度入力シート!F27 -> 23.78 | F9: =年度入力シート!G27 -> 0 | G9: =年度入力シート!H27 -> 173.8144 | H9: =年度入力シート!I27 -> 0 | I9: =年度入力シート!J27 -> 0.49 | J9: =年度入力シート!K27 -> 440.7574 | L9: =年度入力シート!D27 -> 121.37 | M9: =年度入力シート!E27 -> 0
B10: 11月 | C10: =年度入力シート!C30 -> 138.632 | D10: 128.24 | E10: =年度入力シート!F30 -> 23.78 | F10: =年度入力シート!G30 -> 0 | G10: =年度入力シート!H30 -> 429.9192 | H10: =年度入力シート!I30 -> 0 | I10: =年度入力シート!J30 -> 0.49 | J10: =年度入力シート!K30 -> 721.0612 | L10: =年度入力シート!D30 -> 128.24 | M10: =年度入力シート!E30 -> 0
B11: 12月 | C11: =年度入力シート!C33 -> 323.102 | D11: 155.72 | E11: =年度入力シート!F33 -> 21.75 | F11: =年度入力シート!G33 -> 0 | G11: =年度入力シート!H33 -> 158.8968 | H11: =年度入力シート!I33 -> 0 | I11: =年度入力シート!J33 -> 0.735 | J11: =年度入力シート!K33 -> 660.2038 | L11: =年度入力シート!D33 -> 155.72 | M11: =年度入力シート!E33 -> 0
B12: １月 | C12: =年度入力シート!C36 -> 668.564 | D12: 229 | E12: =年度入力シート!F36 -> 21.75 | F12: =年度入力シート!G36 -> 0 | G12: =年度入力シート!H36 -> 259.028 | H12: =年度入力シート!I36 -> 0 | I12: =年度入力シート!J36 -> 0.735 | J12: =年度入力シート!K36 -> 1179.077 | L12: =年度入力シート!D36 -> 229 | M12: =年度入力シート!E36 -> 0
B13: ２月 | C13: =年度入力シート!C39 -> 590.863 | D13: 229 | E13: =年度入力シート!F39 -> 24.07 | F13: =年度入力シート!G39 -> 0 | G13: =年度入力シート!H39 -> 221.6528 | H13: =年度入力シート!I39 -> 0 | I13: =年度入力シート!J39 -> 0.98 | J13: =年度入力シート!K39 -> 1066.5658 | L13: =年度入力シート!D39 -> 229 | M13: =年度入力シート!E39 -> 0
B14: ３月 | C14: =年度入力シート!C42 -> 552.851 | D14: 256.48 | E14: =年度入力シート!F42 -> 24.07 | F14: =年度入力シート!G42 -> 0 | G14: =年度入力シート!H42 -> 180.032 | H14: =年度入力シート!I42 -> 0 | I14: =年度入力シート!J42 -> 0.98 | J14: =年度入力シート!K42 -> 1014.413 | L14: =年度入力シート!D42 -> 256.48 | M14: =年度入力シート!E42 -> 0
B15: 累計 | C15: =年度入力シート!C45 -> 3361.267 | D15: 2040.39 | E15: =年度入力シート!F45 -> 271.44 | F15: =年度入力シート!G45 -> 0 | G15: =年度入力シート!H45 -> 3177.7272 | H15: =年度入力シート!I45 -> 0 | I15: =年度入力シート!J45 -> 8.085 | J15: =年度入力シート!K45 -> 8858.9092 | L15: =年度入力シート!D45 -> 2040.39 | M15: =年度入力シート!E45 -> 0

Sheet 年度金額
C2: 電気 | D2: ガス | E2: 水道 | F2: 灯油 | G2: ｶﾞｿﾘﾝ | H2: 軽油 | I2: 紙 | J2: 合計 | L2: 都市 | M2: ＬＰ
B3: ４月 | C3: =年度入力シート!C10 -> 12422 | D3: =SUM(L3:M3) -> 13685 | E3: =年度入力シート!F10 -> 12030 | F3: =年度入力シート!G10 -> 0 | G3: =年度入力シート!H10 -> 19000 | H3: =年度入力シート!I10 -> 0 | I3: =年度入力シート!J10 -> 0 | J3: =年度入力シート!K10 -> 0 | L3: =年度入力シート!D10 -> 13685 | M3: =年度入力シート!E10 -> 0
B4: ５月 | C4: =年度入力シート!C13 -> 8591 | D4: 16797 | E4: =年度入力シート!F13 -> 12029 | F4: =年度入力シート!G13 -> 0 | G4: =年度入力シート!H13 -> 12181 | H4: =年度入力シート!I13 -> 0 | I4: =年度入力シート!J13 -> 0 | J4: =年度入力シート!K13 -> 49598 | L4: =年度入力シート!D13 -> 16797 | M4: =年度入力シート!E13 -> 0
B5: ６月 | C5: =年度入力シート!C16 -> 4959 | D5: 12539 | E5: =年度入力シート!F16 -> 11850 | F5: =年度入力シート!G16 -> 0 | G5: =年度入力シート!H16 -> 7078 | H5: =年度入力シート!I16 -> 0 | I5: =年度入力シート!J16 -> 0 | J5: =年度入力シート!K16 -> 36426 | L5: =年度入力シート!D16 -> 12539 | M5: =年度入力シート!E16 -> 0
B6: ７月 | C6: =年度入力シート!C19 -> 4639 | D6: 8413 | E6: =年度入力シート!F19 -> 11850 | F6: =年度入力シート!G19 -> 0 | G6: =年度入力シート!H19 -> 14591 | H6: =年度入力シート!I19 -> 0 | I6: =年度入力シート!J19 -> 0 | J6: =年度入力シート!K19 -> 39493 | L6: =年度入力シート!D19 -> 8413 | M6: =年度入力シート!E19 -> 0
B7: ８月 | C7: =年度入力シート!C22 -> 6153 | D7: 10535 | E7: =年度入力シート!F22 -> 13287 | F7: =年度入力シート!G22 -> 0 | G7: =年度入力シート!H22 -> 27203 | H7: =年度入力シート!I22 -> 0 | I7: =年度入力シート!J22 -> 0 | J7: =年度入力シート!K22 -> 57178 | L7: =年度入力シート!D22 -> 10535 | M7: =年度入力シート!E22 -> 0
B8: ９月 | C8: =年度入力シート!C25 -> 5854 | D8: 8250 | E8: =年度入力シート!F25 -> 13286 | F8: =年度入力シート!G25 -> 0 | G8: =年度入力シート!H25 -> 15900 | H8: =年度入力シート!I25 -> 0 | I8: =年度入力シート!J25 -> 0 | J8: =年度入力シート!K25 -> 43290 | L8: =年度入力シート!D25 -> 8250 | M8: =年度入力シート!E25 -> 0
B9: 10月 | C9: =年度入力シート!C28 -> 5574 | D9: 9442 | E9: =年度入力シート!F28 -> 13466 | F9: =年度入力シート!G28 -> 0 | G9: =年度入力シート!H28 -> 10363 | H9: =年度入力シート!I28 -> 0 | I9: =年度入力シート!J28 -> 0 | J9: =年度入力シート!K28 -> 38845 | L9: =年度入力シート!D28 -> 9442 | M9: =年度入力シート!E28 -> 0
B10: 11月 | C10: =年度入力シート!C31 -> 6244 | D10: 9935 | E10: =年度入力シート!F31 -> 13466 | F10: =年度入力シート!G31 -> 0 | G10: =年度入力シート!H31 -> 26348 | H10: =年度入力シート!I31 -> 0 | I10: =年度入力シート!J31 -> 0 | J10: =年度入力シート!K31 -> 55993 | L10: =年度入力シート!D31 -> 9935 | M10: =年度入力シート!E31 -> 0
B11: 12月 | C11: =年度入力シート!C34 -> 13823 | D11: 11903 | E11: =年度入力シート!F34 -> 12209 | F11: =年度入力シート!G34 -> 0 | G11: =年度入力シート!H34 -> 9806 | H11: =年度入力シート!I34 -> 0 | I11: =年度入力シート!J34 -> 0 | J11: =年度入力シート!K34 -> 47741 | L11: =年度入力シート!D34 -> 11903 | M11: =年度入力シート!E34 -> 0
B12: １月 | C12: =年度入力シート!C37 -> 28484 | D12: 17342 | E12: =年度入力シート!F37 -> 12209 | F12: =年度入力シート!G37 -> 0 | G12: =年度入力シート!H37 -> 15691 | H12: =年度入力シート!I37 -> 0 | I12: =年度入力シート!J37 -> 0 | J12: =年度入力シート!K37 -> 73726 | L12: =年度入力シート!D37 -> 17342 | M12: =年度入力シート!E37 -> 0
B13: ２月 | C13: =年度入力シート!C40 -> 25220 | D13: 17342 | E13: =年度入力シート!F40 -> 13645 | F13: =年度入力シート!G40 -> 0 | G13: =年度入力シート!H40 -> 13376 | H13: =年度入力シート!I40 -> 0 | I13: =年度入力シート!J40 -> 0 | J13: =年度入力シート!K40 -> 69583 | L13: =年度入力シート!D40 -> 17342 | M13: =年度入力シート!E40 -> 0
B14: ３月 | C14: =年度入力シート!C43 -> 23623 | D14: 19333 | E14: =年度入力シート!F43 -> 13645 | F14: =年度入力シート!G43 -> 0 | G14: =年度入力シート!H43 -> 10918 | H14: =年度入力シート!I43 -> 0 | I14: =年度入力シート!J43 -> 0 | J14: =年度入力シート!K43 -> 67519 | L14: =年度入力シート!D43 -> 19333 | M14: =年度入力シート!E43 -> 0
B15: 累計 | C15: =年度入力シート!C46 -> 145586 | D15: 155516 | E15: =年度入力シート!F46 -> 152972 | F15: =年度入力シート!G46 -> 0 | G15: =年度入力シート!H46 -> 182455 | H15: =年度入力シート!I46 -> 0 | I15: =年度入力シート!J46 -> 0 | J15: =年度入力シート!K46 -> 636529 | L15: =年度入力シート!D46 -> 155516 | M15: =年度入力シート!E46 -> 0

Sheet 年度別推移
A1: エコライフノート年度別推移表
A2: 使用量 | B2: ４月 | C2: ５月 | D2: ６月 | E2: ７月 | F2: ８月 | G2: ９月 | H2: １０月 | I2: １１月 | J2: １２月 | K2: １月 | L2: ２月 | M2: ３月 | N2: 合計 | O2: 平均/月
A3: 電気 年 (kwh)
A4: 電気 年 (kwh)
A5: 電気 年 (kwh)
A6: 電気 年 (kwh)
A7: 電気 年 (kwh)
A8: 都市ｶﾞｽ 年度 （m3)
A9: 都市ｶﾞｽ 年度 （m3)
A10: 都市ｶﾞｽ 年度 （m3)
A11: 都市ｶﾞｽ 年度 （m3)
A12: 都市ｶﾞｽ 年度 （m3)
A13: 水道 年度 （m3)
A14: 水道 年度 （m3)
A15: 水道 年度 （m3)
A16: 水道 年度 （m3)
A17: 水道 年度 （m3)
A18: ガソリン 年度 （Ｌ）
A19: ガソリン 年度 （Ｌ）
A20: ガソリン 年度 （Ｌ）
A21: ガソリン 年度 （Ｌ）
A22: ガソリン 年度 （Ｌ）
A24: 金額 | B24: ４月 | C24: ５月 | D24: ６月 | E24: ７月 | F24: ８月 | G24: ９月 | H24: １０月 | I24: １１月 | J24: １２月 | K24: １月 | L24: ２月 | M24: ３月 | N24: 合計 | O24: 平均/月
A25: 電気 年 (kwh)
A26: 電気 年 (kwh)
A27: 電気 年 (kwh)
A28: 電気 年 (kwh)
A29: 電気 年 (kwh)
A30: 都市ｶﾞｽ 年度 （m3)
A31: 都市ｶﾞｽ 年度 （m3)
A32: 都市ｶﾞｽ 年度 （m3)
A33: 都市ｶﾞｽ 年度 （m3)
A34: 都市ｶﾞｽ 年度 （m3)
A35: 水道 年度 （m3)
A36: 水道 年度 （m3)
A37: 水道 年度 （m3)
A38: 水道 年度 （m3)
A39: 水道 年度 （m3)
A40: ガソリン 年度 （Ｌ）
A41: ガソリン 年度 （Ｌ）
A42: ガソリン 年度 （Ｌ）
A43: ガソリン 年度 （Ｌ）
A44: ガソリン 年度 （Ｌ）
